bitfinex-derivatives/quotes_SOLF0:USTF0_20250625
["timestamp","ask_amount","ask_price","bid_price","bid_amount"]
[1750820523986,44.41131567,145.91,145.88,6.8513]
[1750820524790,44.41131567,145.91,145.87,15.36887473]
[1750820525395,41.0301,145.91,145.88,6.8512]
[1750820526080,6.8504,145.9,145.87,6.8516]
[1750820526490,41.0302,145.91,145.87,6.8516]
[1750820528396,3.3826855,145.88,145.84,8.51727473]
[1750820528597,3.3826855,145.86,145.8,8.51727473]
[1750820528893,3.3826855,145.86,145.8,6.855]
[1750820528894,6.8533,145.84,145.8,6.855]
[1750820529096,3.3826855,145.84,145.78,15.50257473]
[1750820529289,43.49166458,145.87,145.78,15.50257473]
[1750820529290,3.3826855,145.82,145.78,6.9853]
[1750820529681,6.855,145.81,145.78,6.9853]
[1750820532598,10.2369855,145.82,145.78,6.9853]
[1750820533094,6.855,145.81,145.78,6.9853]
[1750820533296,6.855,145.81,145.78,4.7045]
[1750820534002,3.3826855,145.82,145.78,4.7045]
[1750820534296,3.3826855,145.8,145.75,2.3898]
[1750820534504,10.2381855,145.8,145.75,2.3898]
[1750820534701,3.3826855,145.8,145.75,2.3898]
[1750820534893,3.3826855,145.8,145.74,5.6631612]
[1750820535093,6.8561,145.78,145.74,12.5208612]
[1750820535402,34.2,145.83,145.74,5.6631612]
[1750820535403,37.5826855,145.83,145.74,5.6631612]
[1750820535897,3.3826855,145.81,145.74,5.6631612]
[1750820536094,6.854,145.82,145.74,5.6631612]
[1750820536290,3.3826855,145.77,145.74,5.6631612]
[1750820536604,37.9026855,145.79,145.74,5.6631612]
[1750820537305,44.7585855,145.79,145.75,6.8571]
[1750820539695,37.9026855,145.79,145.76,6.857]
[1750820540004,37.9026855,145.79,145.74,5.6631612]
[1750820540198,3.3826855,145.79,145.74,5.6631612]
[1750820541695,3.3826855,145.79,145.76,6.8567]
[1750820542201,10.2377855,145.8,145.74,5.6631612]
[1750820542898,10.2377855,145.8,145.77,6.8565]
[1750820543204,10.2377855,145.8,145.74,5.6631612]
[1750820543406,10.2377855,145.8,145.76,6.8567]
[1750820543704,6.8557,145.79,145.74,5.6631612]
[1750820544004,6.8562,145.78,145.74,5.6631612]
[1750820544209,10.2388855,145.78,145.74,5.6631612]
[1750820544707,10.2388855,145.78,145.74,12.5207612]
[1750820547505,3.3874011,145.77,145.74,12.5207612]
[1750820548204,10.2440011,145.77,145.74,12.5207612]
[1750820548407,41.374,145.82,145.74,12.5207612]
[1750820548608,3.3874011,145.78,145.75,6.8574]
[1750820549211,10.2438011,145.78,145.75,6.8574]
[1750820552900,3.3874011,145.8,145.74,5.6631612]
[1750820553098,3.3874011,145.81,145.74,5.6631612]
[1750820553305,3.3874011,145.81,145.76,6.8567]
[1750820553505,3.3874011,145.81,145.74,5.6631612]
[1750820553807,3.3874011,145.79,145.74,5.6631612]
[1750820554710,10.2432011,145.79,145.76,6.8567]
[1750820555511,6.8563,145.78,145.75,6.8573]
[1750820556211,3.3874011,145.79,145.74,5.6631612]
[1750820557012,6.8565,145.78,145.74,12.5208612]
[1750820557198,3.3874011,145.79,145.74,12.5208612]
[1750820558210,6.8566,145.77,145.74,12.5208612]
[1750820559611,6.8573,145.76,145.74,5.6631612]
[1750820559810,3.3874011,145.77,145.74,5.6631612]
[1750820561511,10.2442011,145.77,145.74,12.5210612]
[1750820564216,6.8573,145.76,145.74,5.6631612]
[1750820566619,10.2449011,145.75,145.74,5.6631612]
[1750820566816,3.3874011,145.75,145.69,39.1383]
[1750820567017,3.3874011,145.72,145.69,39.1383]
[1750820567320,3.3874011,145.72,145.69,4.5983]
[1750820568022,3.3874011,145.72,145.66,36.6665]
[1750820568210,6.8598,145.71,145.66,36.6665]
[1750820568924,6.8599,145.7,145.67,6.861]
[1750820569218,3.3874011,145.72,145.66,36.6665]
[1750820569615,6.8597,145.71,145.68,6.8607]
[1750820570521,10.2471011,145.71,145.68,6.8607]
[1750820570816,3.3874011,145.69,145.65,8.51727473]
[1750820571012,3.3874011,145.69,145.64,42.91727473]
[1750820571318,10.2480011,145.69,145.66,6.8614]
[1750820572317,3.3874011,145.67,145.65,6.8619]
[1750820572520,3.3874011,145.67,145.64,34.4]
[1750820572716,3.3874011,145.69,145.64,34.4]
[1750820573022,10.2478011,145.69,145.66,6.8614]
[1750820574122,6.8608,145.68,145.66,6.8614]
[1750820575024,6.8608,145.68,145.65,6.8622]
[1750820575524,10.2480011,145.69,145.65,6.8622]
[1750820576022,10.2480011,145.69,145.66,6.8616]
[1750820576418,10.2480011,145.69,145.64,34.4]
[1750820577015,6.8608,145.68,145.64,34.4]
[1750820577319,3.3874011,145.67,145.64,41.2625]
[1750820577517,3.3874011,145.67,145.62,6.9966]
[1750820578629,3.3874011,145.65,145.62,6.9966]
[1750820579219,3.3874011,145.65,145.63,6.8629]
[1750820579920,3.3874011,145.7,145.62,6.9966]
[1750820580124,3.3874011,145.7,145.62,15.51387473]
[1750820580427,3.3874011,145.68,145.62,6.9966]
[1750820580927,6.8615,145.67,145.64,6.8624]
[1750820581421,3.3874011,145.68,145.62,6.9966]
[1750820581623,6.8614,145.67,145.64,6.8625]
[1750820582925,10.2482011,145.68,145.64,6.8625]
[1750820583112,3.3874011,145.68,145.64,6.8624]
[1750820584321,6.8612,145.67,145.64,6.8624]
[1750820584626,3.3874011,145.68,145.65,6.8621]
[1750820584824,3.3874011,145.68,145.62,6.9966]
[1750820585025,3.3874011,145.7,145.62,6.9966]
[1750820585429,6.8605,145.69,145.62,6.9966]
[1750820585631,6.8605,145.69,145.66,6.8616]
[1750820586230,6.8608,145.68,145.65,6.862]
[1750820586423,10.2482011,145.68,145.65,6.862]
[1750820586830,3.3874011,145.68,145.66,6.8616]
[1750820588029,3.3874011,145.68,145.67,6.8612]
[1750820588238,3.3874011,145.69,145.67,6.8612]
[1750820589235,10.2477011,145.69,145.66,6.8615]
[1750820589535,10.2477011,145.69,145.62,6.9966]
[1750820589834,10.2477011,145.69,145.66,6.8616]
[1750820590141,3.3929505,145.67,145.62,6.9966]
[1750820590336,3.3929505,145.67,145.63,6.8628]
[1750820590531,37.8129505,145.67,145.63,6.8628]
[1750820590733,44.6744505,145.67,145.63,6.8628]
[1750820590934,37.8129505,145.67,145.63,6.8628]
[1750820591629,37.8129505,145.67,145.62,11.4869]
[1750820592034,6.862,145.66,145.62,11.4869]
[1750820592338,6.862,145.66,145.62,2.3419]
[1750820592540,37.8129505,145.67,145.61,34.42]
[1750820592739,10.2547505,145.66,145.62,6.8632]
[1750820592940,3.3929505,145.66,145.61,34.42]
[1750820593239,6.8624,145.65,145.61,6.8638]
[1750820593836,3.3929505,145.64,145.59,2.3124]
[1750820594038,3.3929505,145.62,145.59,2.3124]
[1750820594340,10.2567505,145.62,145.59,9.1773]
[1750820594640,3.3929505,145.64,145.59,2.3124]
[1750820594842,3.3929505,145.64,145.61,6.8638]
[1750820595044,3.3929505,145.66,145.59,2.3124]
[1750820595339,3.3929505,145.76,145.59,2.3124]
[1750820595340,37.8129505,145.69,145.59,2.3124]
[1750820595545,3.3929505,145.67,145.6,3.3929505]
[1750820595941,3.3929505,145.67,145.59,5.7053505]
[1750820596743,6.8624,145.65,145.62,6.8633]
[1750820598042,6.8619,145.66,145.63,6.8631]
[1750820598445,10.2543505,145.67,145.63,6.8631]
[1750820598838,3.3929505,145.67,145.63,6.8631]
[1750820599045,3.3929505,145.66,145.59,2.3124]
[1750820599444,3.3929505,145.66,145.63,6.863]
[1750820599744,10.2549505,145.66,145.63,6.863]
[1750820600342,34.42,145.69,145.6,3.3929505]
[1750820600645,3.3929505,145.68,145.6,3.3929505]
[1750820600849,3.3929505,145.68,145.66,6.8615]
[1750820601347,34.42,145.69,145.62,38.3129505]
[1750820601535,34.42,145.69,145.63,4.6053]
[1750820602138,34.42,145.69,145.64,2.2409]
[1750820603343,34.42,145.69,145.67,6.8609]
[1750820604145,34.42,145.69,145.68,6.8608]
[1750820605149,3.3929505,145.71,145.64,5.6338505]
[1750820605536,34.92,145.72,145.64,5.6338505]
[1750820605742,34.92,145.72,145.64,14.15112523]
[1750820606442,41.7776,145.75,145.68,3.3929505]
[1750820606646,34.92,145.75,145.68,38.3129505]
[1750820607044,34.92,145.75,145.68,42.8904505]
[1750820607645,34.92,145.75,145.68,51.40772523]
[1750820608947,34.92,145.75,145.69,8.51727473]
[1750820609251,34.9,145.93,145.74,6.77364428]
[1750820609448,3.38682214,145.87,145.79,3.38682214]
[1750820609749,3.38682214,145.85,145.78,34.9]
[1750820609939,3.38682214,145.85,145.75,15.39172219]
[1750820609940,3.38682214,145.83,145.75,18.77854433]
[1750820610135,3.38682214,145.83,145.75,45.17322214]
[1750820610341,3.38549418,145.83,145.75,45.17189418]
[1750820610543,592.8,145.9,145.79,3.38549418]
[1750820610544,34.9,145.87,145.79,3.38549418]
[1750820610745,34.9,145.87,145.81,3.38549418]
[1750820612246,34.9,145.87,145.84,6.853]
[1750820613346,34.9,145.87,145.85,6.8527]
[1750820614749,34.9,145.87,145.84,6.8531]
[1750820615253,6.8514,145.88,145.84,6.8531]
[1750820615752,6.8513,145.89,145.84,6.8531]
[1750820616052,631.06549418,145.9,145.83,6.8536]
[1750820616448,6.852,145.87,145.83,6.8536]
[1750820617848,6.852,145.87,145.84,6.8532]
[1750820619755,6.852,145.87,145.83,6.8535]
[1750820619957,6.8523,145.86,145.79,38.28549418]
[1750820620145,34.88,145.85,145.79,34.9]
[1750820620349,3.38549418,145.84,145.77,3.38549418]
[1750820621146,6.8538,145.83,145.79,6.8555]
[1750820622058,6.8543,145.82,145.78,6.8558]
[1750820622961,6.8534,145.84,145.8,6.8548]
[1750820623350,6.8534,145.84,145.77,3.38549418]
[1750820623956,34.88,145.85,145.79,3.38549418]
[1750820624961,41.7329,145.85,145.79,3.38549418]
[1750820625662,41.7329,145.85,145.81,6.8543]
[1750820626257,38.26549418,145.85,145.8,6.8549]
[1750820626457,38.26549418,145.85,145.77,3.38549418]
[1750820626855,6.8539,145.83,145.79,6.8553]
[1750820627058,42.76739418,145.85,145.79,6.8553]
[1750820627669,6.8545,145.82,145.79,6.8553]
[1750820632169,6.8549,145.81,145.78,6.8558]
[1750820635475,38.96549418,145.81,145.73,38.96549418]
[1750820636166,6.8559,145.79,145.75,6.8573]
[1750820636566,6.8559,145.79,145.73,38.96549418]
[1750820636769,6.8559,145.79,145.76,6.8568]
[1750820637074,6.8552,145.8,145.73,38.96549418]
[1750820637972,6.8556,145.79,145.76,6.8568]
[1750820638475,35.58,145.81,145.75,3.38549418]
[1750820639368,42.4348,145.81,145.78,6.8558]
[1750820640371,6.8552,145.8,145.78,6.8558]
[1750820640576,35.58,145.81,145.77,6.8563]
[1750820640878,3.38538002,145.79,145.73,35.58]
[1750820641867,10.24128002,145.79,145.76,6.8569]
[1750820642063,6.8559,145.79,145.76,6.8569]
[1750820642775,6.8562,145.78,145.75,6.8573]
[1750820643375,6.8557,145.79,145.76,6.857]
[1750820644878,6.8561,145.78,145.76,6.857]
[1750820645174,38.96670289,145.81,145.76,6.857]
[1750820646072,43.80196687,145.81,145.76,6.857]
[1750820646278,6.8558,145.79,145.76,6.857]
[1750820646878,6.8562,145.78,145.76,6.857]
[1750820648584,6.8562,145.78,145.75,6.8573]
[1750820650086,6.8562,145.78,145.76,6.857]
[1750820650380,6.8562,145.78,145.73,38.96670289]
[1750820650779,6.8562,145.78,145.75,6.8574]
[1750820653082,6.8557,145.79,145.76,6.8569]
[1750820655986,11.70975633,145.79,145.76,6.8569]
[1750820656989,6.8561,145.78,145.75,6.8572]
[1750820657796,6.8558,145.79,145.76,6.857]
[1750820658398,8.22580538,145.8,145.76,6.857]
[1750820658593,35.58,145.81,145.78,6.856]
[1750820658795,35.58,145.81,145.74,18.7161034]
[1750820658991,35.58,145.81,145.76,3.38688121]
[1750820660095,42.4347,145.81,145.78,6.8558]
[1750820660493,35.58,145.81,145.75,3.38540748]
[1750820660701,35.58,145.81,145.75,11.89072967]
[1750820660901,733.814,145.9,145.79,3.38540748]
[1750820660902,40.02091406,145.84,145.79,3.38540748]
[1750820661094,35.18,145.86,145.79,3.38540748]
[1750820661291,6.8529,145.85,145.82,6.8539]
[1750820661485,4.84143312,145.86,145.8,4.6702]
[1750820661994,4.84143312,145.85,145.8,4.6702]
[1750820662196,4.84143312,145.86,145.8,4.6702]
[1750820662395,4.84143312,145.85,145.8,4.6702]
[1750820662598,38.56540748,145.87,145.8,4.6702]
[1750820662599,4.84143312,145.86,145.8,4.6702]
[1750820662800,11.7191885,145.85,145.82,6.8541]
[1750820662999,6.853,145.85,145.82,6.8541]
[1750820664301,4.87132416,145.84,145.82,6.8541]
[1750820664499,6.853,145.85,145.82,6.8541]
[1750820664703,4.87166939,145.84,145.81,6.8544]
[1750820664903,38.56540748,145.87,145.81,6.8544]
[1750820665106,4.8666377,145.86,145.81,6.8544]
[1750820665306,4.8666377,145.85,145.81,6.8544]
[1750820665498,4.8666377,145.84,145.81,6.8544]
[1750820665698,6.8535,145.84,145.81,6.8544]
[1750820668012,6.8538,145.83,145.8,2.281]
[1750820668304,4.86494598,145.84,145.78,43.68532219]
[1750820668507,6.8548,145.81,145.78,42.036]
[1750820668694,6.8548,145.81,145.78,6.856]
[1750820669107,6.8544,145.82,145.79,6.8553]
[1750820669905,6.8544,145.82,145.8,6.8551]
[1750820670101,6.8544,145.82,145.77,8.50532219]
[1750820670411,6.8544,145.82,145.79,6.8553]
[1750820671909,38.56540748,145.83,145.78,6.8559]
[1750820672097,4.87036536,145.82,145.78,6.8559]
[1750820672297,38.56540748,145.83,145.76,10.85032219]
[1750820672503,6.8554,145.8,145.77,6.8563]
[1750820672706,6.8554,145.8,145.76,10.85032219]
[1750820672910,4.87020444,145.82,145.76,10.85032219]
[1750820673109,6.8548,145.81,145.78,6.8558]
[1750820673501,6.8543,145.82,145.76,14.23572967]
[1750820673706,35.18,145.83,145.76,14.23572967]
[1750820674010,10.23840748,145.85,145.82,6.8542]
[1750820674311,4.86471959,145.84,145.8,3.38540748]
[1750820674513,6.8526,145.86,145.83,6.8534]
[1750820674713,4.86472311,145.85,145.83,6.8534]
[1750820674911,4.86472311,145.84,145.83,6.8534]
[1750820675102,4.86472311,145.85,145.83,6.8534]
[1750820675299,6.8526,145.86,145.83,6.8534]
[1750820675510,4.86229096,145.85,145.83,6.8534]
[1750820675703,6.8526,145.86,145.83,6.8534]
[1750820675901,4.8623535,145.85,145.83,6.8534]
[1750820676109,6.8526,145.86,145.83,6.8534]
[1750820676301,4.8623535,145.85,145.84,6.8532]
[1750820676703,4.8623535,145.85,145.8,8.17110748]
[1750820676904,38.56540748,145.87,145.8,8.17110748]
[1750820677105,4.86224237,145.86,145.8,8.17110748]
[1750820677306,4.86223797,145.85,145.8,8.17110748]
[1750820677505,6.8526,145.86,145.83,6.8535]
[1750820677705,4.86223008,145.85,145.83,6.8535]
[1750820677914,6.8526,145.86,145.83,6.8535]
[1750820678113,4.85927012,145.85,145.83,6.8535]
[1750820678313,6.8526,145.86,145.83,6.8535]
[1750820678514,4.85925808,145.85,145.83,6.8535]
[1750820678916,6.8526,145.86,145.83,6.8535]
[1750820679106,4.86954929,145.85,145.84,6.8532]
[1750820679514,4.86954929,145.86,145.8,8.17110748]
[1750820679813,42.032,145.87,145.84,6.8532]
[1750820680017,4.86866715,145.86,145.84,6.8532]
[1750820680214,42.032,145.87,145.84,6.8532]
[1750820680418,4.86867397,145.86,145.84,6.8532]
[1750820680609,42.032,145.87,145.84,6.8532]
[1750820680810,4.86852253,145.86,145.84,6.8532]
[1750820681021,42.032,145.87,145.84,6.8532]
[1750820681313,4.86682186,145.86,145.84,6.8532]
[1750820681513,42.032,145.87,145.84,6.8532]
[1750820681720,4.86722153,145.86,145.84,6.8532]
[1750820682618,42.032,145.87,145.84,6.8532]
[1750820682822,4.86756405,145.86,145.85,6.8528]
[1750820683018,42.032,145.87,145.85,6.8528]
[1750820684117,46.90101952,145.87,145.85,6.8528]
[1750820684308,42.032,145.87,145.85,6.8528]
[1750820684514,46.90101952,145.87,145.85,6.8528]
[1750820684719,42.032,145.87,145.85,6.8528]
[1750820685020,46.90101952,145.87,145.85,6.8528]
[1750820685325,42.032,145.87,145.85,6.8528]
[1750820685527,46.90101952,145.87,145.85,6.8528]
[1750820685822,42.032,145.87,145.85,6.8528]
[1750820686022,46.90078551,145.87,145.85,6.8528]
[1750820686224,42.032,145.87,145.85,6.8528]
[1750820686514,40.04878551,145.87,145.85,6.8528]
[1750820686709,35.18,145.87,145.81,2.3284]
[1750820686916,40.04878551,145.87,145.81,2.3284]
[1750820687317,40.04878551,145.87,145.85,6.8525]
[1750820688921,40.0580138,145.87,145.85,6.8525]
[1750820689823,46.9099138,145.87,145.84,6.8531]
[1750820690119,42.0319,145.87,145.84,6.8531]
[1750820690321,46.9099138,145.87,145.84,6.8531]
[1750820690621,42.0319,145.87,145.84,6.8531]
[1750820690925,46.9099138,145.87,145.84,6.8531]
[1750820691231,42.0319,145.87,145.84,6.8531]
[1750820691519,42.0319,145.87,145.81,2.3284]
[1750820691520,46.9099138,145.87,145.85,6.8527]
[1750820691722,35.18,145.87,145.85,6.8527]
[1750820691923,40.0580138,145.87,145.85,6.8527]
[1750820693825,46.9099138,145.87,145.85,6.8527]
[1750820694024,35.18,145.87,145.81,2.3284]
[1750820694320,40.0580138,145.87,145.81,2.3284]
[1750820694719,42.0321,145.87,145.84,6.8529]
[1750820695115,46.91287103,145.87,145.84,6.8529]
[1750820695822,46.91287103,145.87,145.85,6.8527]
[1750820696026,40.06077103,145.87,145.85,6.8527]
[1750820697426,35.18,145.87,145.85,6.8527]
[1750820698513,4.8872166,145.87,145.86,6.8523]
[1750820698718,4.88746992,145.88,145.83,34.9]
[1750820698919,6.8521,145.87,145.84,6.853]
[1750820699329,11.73962922,145.87,145.84,6.853]
[1750820699623,6.8521,145.87,145.84,6.853]
[1750820699825,11.73962922,145.87,145.84,6.853]
[1750820700018,6.8521,145.87,145.84,6.853]
[1750820700525,6.8529,145.85,145.83,6.8536]
[1750820700723,3.38540748,145.85,145.81,8.50532219]
[1750820700927,4.89049556,145.84,145.78,11.89072967]
[1750820701119,4.89049556,145.84,145.78,8.50532219]
[1750820701329,3.38540748,145.81,145.77,8.50532219]
[1750820701524,3.38540748,145.79,145.75,8.50532219]
[1750820701731,3.38540748,145.79,145.75,15.36242219]
[1750820701924,3.38540748,145.79,145.75,8.50532219]
[1750820702121,3.38540748,145.79,145.74,10.82152219]
[1750820703124,6.8564,145.78,145.75,8.50532219]
[1750820703731,6.8564,145.78,145.74,10.82152219]
[1750820704229,6.8564,145.78,145.75,6.8572]
[1750820704933,6.8564,145.78,145.75,15.36252219]
[1750820705132,6.8564,145.78,145.74,2.3162]
[1750820705133,6.8566,145.77,145.74,17.67932219]
[1750820705636,6.8566,145.77,145.75,6.8575]
[1750820705824,6.8566,145.77,145.75,15.36282219]
[1750820706132,6.8566,145.77,145.75,6.8575]
[1750820706734,6.8562,145.78,145.75,6.8575]
[1750820713131,6.8562,145.78,145.76,6.8569]
[1750820713732,34.9,145.8,145.74,3.38540748]
[1750820714038,34.9,145.8,145.74,11.89072967]
[1750820714227,6.856,145.79,145.76,6.8568]
[1750820714432,34.9,145.8,145.73,8.50532219]
[1750820715127,6.8563,145.78,145.75,6.8574]
[1750820720038,6.8563,145.78,145.76,6.857]
[1750820721431,6.8563,145.78,145.75,6.8572]
[1750820722641,6.8563,145.78,145.72,46.79072967]
[1750820723140,6.8563,145.78,145.75,6.8572]
[1750820724744,6.8566,145.77,145.75,6.8572]
[1750820725244,3.38540748,145.79,145.72,46.79072967]
[1750820725245,3.38540748,145.79,145.72,34.9]
[1750820725740,6.8571,145.76,145.72,34.9]
[1750820726129,6.8571,145.76,145.73,6.8582]
[1750820726341,6.8571,145.76,145.71,4.4472]
[1750820726534,6.8568,145.77,145.71,4.4472]
[1750820726733,6.8568,145.77,145.74,6.8577]
[1750820732447,38.28540748,145.8,145.72,11.89072967]
[1750820732844,6.8562,145.78,145.75,6.8572]
[1750820733748,3.38540748,145.78,145.72,3.38540748]
[1750820733940,3.38540748,145.78,145.71,12.95252219]
[1750820734743,6.8573,145.76,145.74,6.8579]
[1750820735340,6.8573,145.76,145.73,6.8582]
[1750820735549,3.38540748,145.78,145.71,12.95252219]
[1750820735750,3.38540748,145.78,145.71,4.4472]
[1750820735952,3.38540748,145.78,145.72,6.8586]
[1750820736449,3.38540748,145.76,145.71,6.8593]
[1750820736750,38.08540748,145.76,145.7,36.9243]
[1750820736947,6.8578,145.75,145.7,36.9243]
[1750820738246,6.8578,145.75,145.72,6.8587]
[1750820738853,6.8581,145.74,145.71,6.8591]
[1750820739346,6.8581,145.74,145.71,6.859]
[1750820741753,44.94240748,145.76,145.72,6.8588]
[1750820741956,38.08540748,145.76,145.7,2.2243]
[1750820742154,38.08540748,145.76,145.7,10.72962219]
[1750820742356,2.16859844,145.75,145.72,6.8585]
[1750820743357,2.16859844,145.75,145.73,6.8581]
[1750820744361,4.81848175,145.81,145.73,2.16859844]
[1750820744566,36.86859844,145.79,145.73,8.50532219]
[1750820744862,36.86859844,145.79,145.75,2.16859844]
[1750820745167,36.86859844,145.79,145.74,10.67392063]
[1750820745364,36.86859844,145.79,145.75,2.16859844]
[1750820745558,36.86859844,145.79,145.76,2.16859844]
[1750820745559,34.7,145.79,145.76,2.16859844]
[1750820745755,36.86859844,145.82,145.78,2.16859844]
[1750820745958,4.82860649,145.81,145.79,2.16859844]
[1750820746164,36.86859844,145.83,145.79,2.16859844]
[1750820746367,4.82907469,145.82,145.77,11.8899259]
[1750820746569,4.82907469,145.81,145.77,11.8899259]
[1750820746762,34.7,145.83,145.77,11.8899259]
[1750820746964,4.8290716,145.82,145.77,11.8899259]
[1750820747264,34.7,145.83,145.77,11.8899259]
[1750820747569,34.7,145.83,145.82,6.8542]
[1750820747864,39.52969155,145.83,145.82,6.8542]
[1750820748061,4.82969155,145.83,145.82,6.8542]
[1750820748269,34.7,145.86,145.85,6.8528]
[1750820748466,39.52984016,145.86,145.85,6.8528]
[1750820748762,4.82984016,145.87,145.86,6.8523]
[1750820749267,4.82984016,145.87,145.82,2.2619]
[1750820749472,34.7,145.89,145.85,6.8524]
[1750820749658,4.8717517,145.88,145.85,6.8524]
[1750820749858,4.8717517,145.87,145.85,6.8524]
[1750820750158,41.5509,145.89,145.86,6.8522]
[1750820750360,4.8717248,145.88,145.86,6.8522]
[1750820750664,4.87200378,145.87,145.86,6.8522]
[1750820751368,4.87200378,145.88,145.86,6.8522]
[1750820751570,41.5509,145.89,145.86,6.8522]
[1750820751867,41.5509,145.89,145.82,2.2619]
[1750820751868,4.86792766,145.88,145.87,6.8518]
[1750820752170,34.7,145.89,145.87,6.8518]
[1750820752762,34.7,145.89,145.86,6.8521]
[1750820753069,39.56973491,145.89,145.83,3.38460371]
[1750820753368,39.56973491,145.89,145.87,6.8518]
[1750820753570,34.7,145.89,145.87,6.8518]
[1750820753769,34.7,145.89,145.83,37.94460371]
[1750820753961,4.87054818,145.9,145.85,3.38460371]
[1750820754163,34.56,145.92,145.86,2.2604]
[1750820754368,39.42384265,145.92,145.86,2.2604]
[1750820754667,4.86384265,145.93,145.87,3.38460371]
[1750820754870,4.86384265,145.93,145.88,2.3818]
[1750820755170,4.86384265,145.94,145.92,6.8492]
[1750820757372,46.27194265,145.95,145.92,6.8492]
[1750820757776,41.4081,145.95,145.92,6.8492]
[1750820758473,34.56,145.95,145.93,6.8489]
[1750820759159,34.56,145.95,145.89,3.38460371]
[1750820759160,4.90371075,145.99,145.94,6.8485]
[1750820759364,34.56,145.98,145.91,37.94460371]
[1750820759577,34.56,145.98,145.92,4.6137]
[1750820759870,34.56,145.98,145.93,3.38460371]
[1750820760270,34.56,145.98,145.96,6.8475]
[1750820760569,34.56,145.98,145.93,3.38460371]
[1750820760977,34.56,145.98,145.95,6.8478]
[1750820761977,3.38460371,145.97,145.89,3.38460371]
[1750820762181,3.38460371,145.95,145.89,34.54]
[1750820762478,10.23300371,145.95,145.91,6.8497]
[1750820762668,10.23300371,145.95,145.89,34.54]
[1750820762868,34.56,145.98,145.89,37.92460371]
[1750820763069,10.23200371,145.97,145.93,6.8488]
[1750820765476,6.8477,145.96,145.93,6.8488]
[1750820765678,3.38460371,145.97,145.89,37.92460371]
[1750820766275,6.8484,145.95,145.91,6.8496]
[1750820766473,6.8484,145.95,145.89,37.92460371]
[1750820766681,3.38460371,145.97,145.89,37.92460371]
[1750820767182,6.8479,145.96,145.89,37.92460371]
[1750820767680,6.8474,145.97,145.91,3.38460371]
[1750820767870,3.38460371,145.96,145.89,37.92460371]
[1750820768073,3.38460371,145.96,145.89,34.54]
[1750820768268,6.8488,145.94,145.9,6.8502]
[1750820769378,6.8488,145.94,145.91,6.8499]
[1750820773086,6.8483,145.95,145.92,6.8494]
[1750820773285,3.38460371,145.96,145.89,37.92460371]
[1750820773476,1.19259767,146.02,145.91,3.38460371]
[1750820773782,3.38460371,146.04,145.95,3.38460371]
[1750820773973,37.92460371,146.04,145.96,39.2427]
[1750820774579,6.8449,146.02,145.99,6.8458]
[1750820774785,37.92460371,146.04,145.97,3.38460371]
[1750820775377,37.92460371,146.04,146.0,6.8454]
[1750820775378,6.8445,146.03,146.0,6.8454]
[1750820775685,34.54,146.04,145.97,3.38460371]
[1750820775880,34.54,146.04,145.97,5.72530371]
[1750820776185,34.54,146.07,146.01,3.38460371]
[1750820776682,34.54,146.07,146.0,34.54]
[1750820776877,34.54,146.07,146.01,3.38460371]
[1750820777178,13.6707,146.23,146.09,6.8414]
[1750820777370,3.38460371,146.15,146.08,3.38460371]
[1750820777572,37.92460371,146.15,146.08,3.38460371]
[1750820777976,34.54,146.15,146.08,3.38460371]
[1750820778189,6.8392,146.14,146.1,6.8407]
[1750820778488,34.54,146.15,146.08,3.38460371]
[1750820778787,6.8395,146.14,146.09,6.8413]
[1750820779185,34.54,146.15,146.1,3.38460371]
[1750820779693,34.54,146.15,146.11,6.8405]
[1750820779888,34.54,146.15,146.12,3.38460371]
[1750820780481,34.54,146.15,146.09,3.38460371]
[1750820780882,6.8393,146.14,146.1,6.841]
[1750820781585,6.8393,146.14,146.09,10.22600371]
[1750820781792,6.8398,146.13,146.09,3.38460371]
[1750820782290,6.8401,146.12,146.09,10.22580371]
[1750820782489,6.8401,146.12,146.09,3.38460371]
[1750820782692,34.54,146.15,146.09,3.38460371]